[Event "ONJK 2024 ABC"]
[Site "Velp, Netherlands"]
[Date "2024.08.02"]
[Round "1.1"]
[White "Leenen, Boyd"]
[Black "Decraene, Lotus"]
[Result "1/2-1/2"]
[TimeControl "90 minutes + 30 seconds"]
[WhiteElo "1921"]
[BlackElo "1799"]

1. d4 {[%clk 01:30:59]} d5 {[%clk 01:30:53]} {[%emt 00:00:07]} 2. c4 {[%clk
01:31:23]} {[%emt 00:00:06]} e6 {[%clk 01:31:13]} {[%emt 00:00:10]} 3. Nc3
{[%clk 01:31:47]} {[%emt 00:00:06]} Nf6 {[%clk 01:31:34]} {[%emt 00:00:10]} 4.
cxd5 {[%clk 01:32:11]} {[%emt 00:00:06]} exd5 {[%clk 01:31:52]} {[%emt
00:00:12]} 5. Bg5 {[%clk 01:32:30]} {[%emt 00:00:10]} Be7 {[%clk 01:31:09]}
{[%emt 00:01:13]} 6. e3 {[%clk 01:32:36]} {[%emt 00:00:24]} Nbd7 {[%clk
01:25:29]} {[%emt 00:06:10]} 7. Bd3 {[%clk 01:32:02]} {[%emt 00:01:04]} Nf8
{[%clk 01:15:31]} {[%emt 00:10:29]} 8. Nge2 {[%clk 01:27:15]} {[%emt 00:05:16]}
Ne6 {[%clk 01:12:51]} {[%emt 00:03:10]} 9. Bh4 {[%clk 01:26:58]} {[%emt
00:00:47]} O-O {[%clk 01:11:36]} {[%emt 00:01:46]} 10. O-O {[%clk 01:26:26]}
{[%emt 00:01:01]} b6 {[%clk 01:10:44]} {[%emt 00:01:22]} 11. Qc2 {[%clk
01:19:46]} {[%emt 00:07:11]} h6 {[%clk 01:10:27]} {[%emt 00:00:46]} 12. f3
{[%clk 01:18:50]} {[%emt 00:01:26]} Bb7 {[%clk 01:07:38]} {[%emt 00:03:20]} 13.
Rae1 {[%clk 01:13:45]} {[%emt 00:05:35]} c5 {[%clk 00:57:33]} {[%emt 00:10:34]}
14. Bf2 {[%clk 01:12:46]} {[%emt 00:01:28]} Rc8 {[%clk 00:52:12]} {[%emt
00:05:51]} 15. Ng3 {[%clk 00:58:52]} {[%emt 00:14:24]} Ne8 {[%clk 00:41:59]}
{[%emt 00:10:43]} 16. Rd1 {[%clk 00:41:14]} {[%emt 00:18:09]} cxd4 {[%clk
00:37:15]} {[%emt 00:05:13]} 17. exd4 {[%clk 00:41:18]} {[%emt 00:00:27]} Nd6
{[%clk 00:36:56]} {[%emt 00:00:48]} 18. Nf5 {[%clk 00:37:13]} {[%emt 00:04:36]}
Bf6 {[%clk 00:33:31]} {[%emt 00:03:55]} 19. Nxd6 {[%clk 00:35:14]} {[%emt
00:02:29]} Qxd6 {[%clk 00:33:49]} {[%emt 00:00:11]} 20. Qa4 {[%clk 00:32:14]}
{[%emt 00:03:31]} a6 {[%clk 00:30:27]} {[%emt 00:03:52]} 21. Ne2 {[%clk
00:25:10]} {[%emt 00:07:33]} b5 {[%clk 00:29:12]} {[%emt 00:01:46]} 1/2-1/2

[Event "ONJK 2024 ABC"]
[Site "Velp, Netherlands"]
[Date "2024.08.02"]
[Round "1.2"]
[White "Blokzijl, Ruben"]
[Black "Elferink, Leon"]
[Result "0-1"]
[TimeControl "90 minutes + 30 seconds"]
[WhiteElo "1743"]
[BlackElo "1900"]

1. e4 {[%clk 01:30:55]} {[%emt 00:00:04]} e5 {[%clk 01:30:53]} {[%emt
00:00:08]} 2. Nf3 {[%clk 01:31:16]} {[%emt 00:00:09]} Nc6 {[%clk 01:31:01]}
{[%emt 00:00:23]} 3. Bc4 {[%clk 01:31:38]} {[%emt 00:00:07]} Bc5 {[%clk
01:31:17]} {[%emt 00:00:14]} 4. d3 {[%clk 01:31:06]} {[%emt 00:01:01]} Nf6
{[%clk 01:30:31]} {[%emt 00:01:17]} 5. Nc3 {[%clk 01:28:27]} {[%emt 00:03:09]}
a6 {[%clk 01:27:40]} {[%emt 00:03:21]} 6. Bg5 {[%clk 01:28:52]} {[%emt
00:00:05]} d6 {[%clk 01:21:42]} {[%emt 00:06:28]} 7. Nd5 {[%clk 01:26:45]}
{[%emt 00:02:38]} Be6 {[%clk 01:18:40]} {[%emt 00:03:31]} 8. c3 {[%clk
01:23:59]} {[%emt 00:03:16]} Na5 {[%clk 01:11:52]} {[%emt 00:07:18]} 9. Qa4+
{[%clk 01:17:24]} {[%emt 00:07:04]} Bd7 {[%clk 01:02:39]} {[%emt 00:09:43]} 10.
Qc2 {[%clk 01:10:37]} {[%emt 00:07:17]} Nxc4 {[%clk 01:02:44]} {[%emt
00:00:25]} 11. dxc4 {[%clk 01:10:55]} {[%emt 00:00:11]} c6 {[%clk 00:56:31]}
{[%emt 00:06:43]} 12. Nxf6+ {[%clk 01:00:49]} {[%emt 00:10:37]} gxf6 {[%clk
00:56:52]} {[%emt 00:00:09]} 13. Bh4 {[%clk 01:01:04]} {[%emt 00:00:15]} Qe7
{[%clk 00:52:37]} {[%emt 00:04:45]} 14. Rd1 {[%clk 00:59:08]} {[%emt 00:02:25]}
Qe6 {[%clk 00:51:34]} {[%emt 00:01:33]} 15. Qd3 {[%clk 00:52:41]} {[%emt
00:06:58]} a5 {[%clk 00:42:50]} {[%emt 00:09:14]} 16. Nd2 {[%clk 00:44:22]}
{[%emt 00:08:48]} Qg4 {[%clk 00:39:46]} {[%emt 00:03:34]} 17. Qg3 {[%clk
00:30:43]} {[%emt 00:14:09]} f5 {[%clk 00:32:47]} {[%emt 00:07:29]} 18. f3
{[%clk 00:27:52]} {[%emt 00:03:21]} Qg6 {[%clk 00:30:50]} {[%emt 00:02:27]} 19.
Qxg6 {[%clk 00:23:34]} {[%emt 00:04:48]} fxg6 {[%clk 00:30:49]} {[%emt
00:00:31]} 20. Nb3 {[%clk 00:23:50]} {[%emt 00:00:14]} fxe4 {[%clk 00:28:18]}
{[%emt 00:03:01]} 21. Nxc5 {[%clk 00:21:02]} {[%emt 00:03:18]} dxc5 {[%clk
00:28:33]} {[%emt 00:00:14]} 22. fxe4 {[%clk 00:21:14]} {[%emt 00:00:19]} Bg4
{[%clk 00:26:25]} {[%emt 00:02:38]} 23. Rd2 {[%clk 00:21:18]} {[%emt 00:00:26]}
O-O {[%clk 00:26:38]} {[%emt 00:00:17]} 24. h3 {[%clk 00:20:07]} {[%emt
00:01:41]} Be6 {[%clk 00:26:28]} {[%emt 00:00:40]} 25. b3 {[%clk 00:18:54]}
{[%emt 00:01:44]} Rf4 {[%clk 00:26:13]} {[%emt 00:00:45]} 26. Bg3 {[%clk
00:18:45]} {[%emt 00:00:28]} Rxe4+ {[%clk 00:24:33]} {[%emt 00:02:20]} 27. Kd1
{[%clk 00:16:40]} {[%emt 00:02:35]} Re3 {[%clk 00:21:55]} {[%emt 00:03:09]} 28.
Bf2 {[%clk 00:14:43]} {[%emt 00:02:28]} Rxc3 {[%clk 00:22:10]} {[%emt
00:00:14]} 29. Bxc5 {[%clk 00:15:08]} {[%emt 00:00:05]} a4 {[%clk 00:21:53]}
{[%emt 00:00:47]} 30. Bb4 {[%clk 00:12:21]} {[%emt 00:03:18]} Re3 {[%clk
00:18:38]} {[%emt 00:03:44]} 31. Re1 {[%clk 00:10:31]} {[%emt 00:02:21]} Rxe1+
{[%clk 00:18:11]} {[%emt 00:00:58]} 32. Kxe1 {[%clk 00:10:54]} {[%emt
00:00:07]} axb3 {[%clk 00:18:17]} {[%emt 00:00:23]} 33. axb3 {[%clk 00:11:22]}
{[%emt 00:00:03]} Ra1+ {[%clk 00:16:27]} {[%emt 00:02:19]} 34. Rd1 {[%clk
00:11:36]} {[%emt 00:00:16]} Rxd1+ {[%clk 00:16:27]} {[%emt 00:00:30]} 35. Kxd1
{[%clk 00:12:00]} {[%emt 00:00:06]} b5 {[%clk 00:16:33]} {[%emt 00:00:24]} 36.
Bc3 {[%clk 00:10:30]} {[%emt 00:02:00]} bxc4 {[%clk 00:16:36]} {[%emt
00:00:27]} 37. bxc4 {[%clk 00:10:54]} {[%emt 00:00:07]} Bxc4 {[%clk 00:16:59]}
{[%emt 00:00:07]} 38. Bxe5 {[%clk 00:11:19]} {[%emt 00:00:05]} Bf1 {[%clk
00:17:21]} {[%emt 00:00:07]} 39. h4 {[%clk 00:11:10]} {[%emt 00:00:40]} Bxg2
{[%clk 00:17:43]} {[%emt 00:00:07]} 40. Kd2 {[%clk 00:11:22]} {[%emt 00:00:18]}
Kf7 {[%clk 00:17:46]} {[%emt 00:00:27]} 41. Bf4 {[%clk 00:11:01]} {[%emt
00:00:51]} Kg7 {[%clk 00:18:07]} {[%emt 00:00:09]} 42. Ke3 {[%clk 00:08:34]}
{[%emt 00:02:57]} Kf6 {[%clk 00:18:24]} {[%emt 00:00:13]} 43. Bg5+ {[%clk
00:07:28]} {[%emt 00:01:36]} Kf5 {[%clk 00:18:46]} {[%emt 00:00:08]} 44. Kd4
{[%clk 00:07:38]} {[%emt 00:00:20]} Kg4 {[%clk 00:19:06]} {[%emt 00:00:10]} 45.
Ke5 {[%clk 00:06:38]} {[%emt 00:01:30]} Kh5 {[%clk 00:18:40]} {[%emt 00:00:56]}
46. Kf4 {[%clk 00:06:35]} {[%emt 00:00:33]} c5 {[%clk 00:18:51]} {[%emt
00:00:19]} 47. Bf6 {[%clk 00:05:33]} {[%emt 00:01:33]} c4 {[%clk 00:18:45]}
{[%emt 00:00:36]} 48. Kg3 {[%clk 00:04:51]} {[%emt 00:01:12]} Bf1 {[%clk
00:19:07]} {[%emt 00:00:07]} 49. Kf4 {[%clk 00:04:58]} {[%emt 00:00:23]} h6
{[%clk 00:19:12]} {[%emt 00:00:25]} 50. Be7 {[%clk 00:05:06]} {[%emt 00:00:21]}
c3 {[%clk 00:19:27]} {[%emt 00:00:16]} 51. Bf6 {[%clk 00:04:07]} {[%emt
00:01:30]} c2 {[%clk 00:19:36]} {[%emt 00:00:21]} 52. Bb2 {[%clk 00:04:33]}
{[%emt 00:00:04]} Kxh4 {[%clk 00:19:59]} {[%emt 00:00:07]} 0-1

[Event "ONJK 2024 ABC"]
[Site "Velp, Netherlands"]
[Date "2024.08.02"]
[Round "1.3"]
[White "Musabayeva, Diana"]
[Black "Hesse, Lucas"]
[Result "1-0"]
[TimeControl "90 minutes + 30 seconds"]
[WhiteElo "1871"]
[BlackElo "1708"]

1. e4 {[%clk 01:30:59]} d5 {[%clk 01:30:55]} {[%emt 00:00:06]} 2. exd5 {[%clk
01:31:22]} {[%emt 00:00:05]} Qxd5 {[%clk 01:31:23]} {[%emt 00:00:03]} 3. Nc3
{[%clk 01:31:42]} {[%emt 00:00:10]} Qa5 {[%clk 01:31:49]} {[%emt 00:00:04]} 4.
Nf3 {[%clk 01:31:01]} {[%emt 00:01:11]} Bg4 {[%clk 01:32:09]} {[%emt 00:00:10]}
5. Be2 {[%clk 01:30:55]} {[%emt 00:00:35]} e6 {[%clk 01:32:30]} {[%emt
00:00:10]} 6. O-O {[%clk 01:30:53]} {[%emt 00:00:32]} Nf6 {[%clk 01:32:33]}
{[%emt 00:00:27]} 7. d4 {[%clk 01:30:22]} {[%emt 00:01:01]} Bb4 {[%clk
01:32:37]} {[%emt 00:00:26]} 8. Bd2 {[%clk 01:29:13]} {[%emt 00:01:38]} Nbd7
{[%clk 01:32:39]} {[%emt 00:00:29]} 9. h3 {[%clk 01:28:21]} {[%emt 00:01:22]}
Bh5 {[%clk 01:32:41]} {[%emt 00:00:28]} 10. a3 {[%clk 01:28:04]} {[%emt
00:00:47]} Bxc3 {[%clk 01:33:03]} {[%emt 00:00:09]} 11. Bxc3 {[%clk 01:27:58]}
{[%emt 00:00:36]} Qb6 {[%clk 01:33:27]} {[%emt 00:00:06]} 12. Ne5 {[%clk
01:25:25]} {[%emt 00:03:02]} Bxe2 {[%clk 01:31:27]} {[%emt 00:02:31]} 13. Qxe2
{[%clk 01:25:10]} {[%emt 00:00:44]} Nf8 {[%clk 01:31:12]} {[%emt 00:00:45]} 14.
Bb4 {[%clk 01:19:34]} {[%emt 00:06:07]} Qxd4 {[%clk 01:30:10]} {[%emt
00:01:32]} 15. Qb5+ {[%clk 01:18:15]} {[%emt 00:01:48]} N8d7 {[%clk 01:27:16]}
{[%emt 00:03:24]} 16. Nxd7 {[%clk 01:16:51]} {[%emt 00:01:54]} c6 {[%clk
01:25:18]} {[%emt 00:02:29]} 17. Qxb7 {[%clk 01:16:37]} {[%emt 00:00:43]} Rd8
{[%clk 01:24:47]} {[%emt 00:01:02]} 18. Nxf6+ {[%clk 01:16:47]} {[%emt
00:00:19]} Qxf6 {[%clk 01:24:59]} {[%emt 00:00:19]} 19. Rad1 {[%clk 01:16:42]}
{[%emt 00:00:35]} a5 {[%clk 01:22:47]} {[%emt 00:02:42]} 20. Qxc6+ {[%clk
01:17:02]} {[%emt 00:00:10]} Rd7 {[%clk 01:23:00]} {[%emt 00:00:17]} 21. Qxd7#
{[%clk 01:17:21]} {[%emt 00:00:10]} 1-0

[Event "ONJK 2024 ABC"]
[Site "Velp, Netherlands"]
[Date "2024.08.02"]
[Round "1.4"]
[White "Faybish, Dana"]
[Black "De Vries, Arjan"]
[Result "0-1"]
[TimeControl "90 minutes + 30 seconds"]
[WhiteElo "1707"]
[BlackElo "1843"]

1. e4 {[%clk 01:30:46]} {[%emt 00:00:13]} e5 {[%clk 01:30:41]} {[%emt
00:00:20]} 2. Nf3 {[%clk 01:30:53]} {[%emt 00:00:22]} Nc6 {[%clk 01:31:05]}
{[%emt 00:00:06]} 3. Bc4 {[%clk 01:30:54]} {[%emt 00:00:28]} Bc5 {[%clk
01:31:30]} {[%emt 00:00:06]} 4. d3 {[%clk 01:30:09]} {[%emt 00:01:15]} Nf6
{[%clk 01:31:24]} {[%emt 00:00:37]} 5. O-O {[%clk 01:29:53]} {[%emt 00:00:46]}
d6 {[%clk 01:31:45]} {[%emt 00:00:09]} 6. c3 {[%clk 01:29:19]} {[%emt
00:01:03]} O-O {[%clk 01:31:02]} {[%emt 00:01:13]} 7. Nbd2 {[%clk 01:26:15]}
{[%emt 00:03:35]} Bg4 {[%clk 01:30:46]} {[%emt 00:00:45]} 8. Re1 {[%clk
01:24:19]} {[%emt 00:02:25]} a6 {[%clk 01:30:20]} {[%emt 00:00:57]} 9. Bb3
{[%clk 01:24:21]} {[%emt 00:00:29]} h6 {[%clk 01:25:24]} {[%emt 00:05:26]} 10.
Nf1 {[%clk 01:23:26]} {[%emt 00:01:24]} d5 {[%clk 01:22:13]} {[%emt 00:03:41]}
11. exd5 {[%clk 01:10:54]} {[%emt 00:13:03]} Nxd5 {[%clk 01:22:34]} {[%emt
00:00:09]} 12. h3 {[%clk 01:09:40]} {[%emt 00:01:43]} Be6 {[%clk 01:20:56]}
{[%emt 00:02:08]} 13. Qe2 {[%clk 00:59:29]} {[%emt 00:10:41]} Qf6 {[%clk
01:19:43]} {[%emt 00:01:44]} 14. Ng3 {[%clk 00:55:09]} {[%emt 00:04:50]} Qg6
{[%clk 01:15:41]} {[%emt 00:04:31]} 15. Kh1 {[%clk 00:41:21]} {[%emt 00:14:18]}
Rfe8 {[%clk 01:13:49]} {[%emt 00:02:22]} 16. Ne4 {[%clk 00:36:41]} {[%emt
00:05:10]} Ba7 {[%clk 01:13:00]} {[%emt 00:01:19]} 17. Nh4 {[%clk 00:31:26]}
{[%emt 00:05:46]} Qh7 {[%clk 01:12:12]} {[%emt 00:01:17]} 18. Qf3 {[%clk
00:28:52]} {[%emt 00:03:02]} Rad8 {[%clk 01:06:45]} {[%emt 00:05:59]} 19. Ng3
{[%clk 00:23:36]} {[%emt 00:05:46]} Nde7 {[%clk 00:57:45]} {[%emt 00:09:31]} 20.
Ne4 {[%clk 00:19:01]} {[%emt 00:05:04]} Bxb3 {[%clk 00:56:41]} {[%emt
00:01:34]} 21. axb3 {[%clk 00:18:58]} {[%emt 00:00:34]} Rf8 {[%clk 00:52:35]}
{[%emt 00:04:36]} 22. Qe2 {[%clk 00:12:06]} {[%emt 00:07:21]} Nd5 {[%clk
00:42:48]} {[%emt 00:10:17]} 23. Bd2 {[%clk 00:10:04]} {[%emt 00:02:33]} Kh8
{[%clk 00:35:09]} {[%emt 00:08:09]} 24. Rad1 {[%clk 00:09:13]} {[%emt
00:01:20]} Nf6 {[%clk 00:34:15]} {[%emt 00:01:24]} 25. Nxf6 {[%clk 00:05:58]}
{[%emt 00:03:46]} gxf6 {[%clk 00:34:41]} {[%emt 00:00:04]} 26. Qf3 {[%clk
00:02:33]} {[%emt 00:03:54]} Rxd3 {[%clk 00:31:19]} {[%emt 00:03:54]} 27. Qxf6+
{[%clk 00:02:45]} {[%emt 00:00:17]} Kg8 {[%clk 00:31:44]} {[%emt 00:00:04]} 28.
Nf5 {[%clk 00:01:46]} {[%emt 00:01:30]} Qg6 {[%clk 00:31:38]} {[%emt 00:00:36]}
29. Nxh6+ {[%clk 00:01:07]} {[%emt 00:01:09]} Kh7 {[%clk 00:32:03]} {[%emt
00:00:04]} 30. Qh4 {[%clk 00:01:08]} {[%emt 00:00:28]} Kg7 {[%clk 00:32:00]}
{[%emt 00:00:35]} 31. Be3 {[%clk 00:00:37]} {[%emt 00:01:00]} Rxd1 {[%clk
00:31:00]} {[%emt 00:01:31]} 32. Rxd1 {[%clk 00:00:39]} {[%emt 00:00:28]} Bxe3
{[%clk 00:31:25]} {[%emt 00:00:05]} 33. fxe3 {[%emt 00:00:40]} Qxh6 {[%clk
00:31:39]} {[%emt 00:00:14]} 34. Qe4 {[%clk 00:00:42]} {[%emt 00:00:19]} Qg6
{[%clk 00:31:39]} {[%emt 00:00:30]} 35. Qf3 {[%clk 00:00:43]} {[%emt 00:00:28]}
Rd8 {[%clk 00:31:01]} {[%emt 00:01:10]} 36. Rxd8 {[%clk 00:00:39]} {[%emt
00:00:35]} Nxd8 {[%clk 00:31:26]} {[%emt 00:00:05]} 37. Qd5 {[%clk 00:00:54]}
{[%emt 00:00:14]} Qd6 {[%clk 00:31:40]} {[%emt 00:00:16]} 38. Qe4 {[%clk
00:00:59]} {[%emt 00:00:24]} Qe6 {[%clk 00:30:43]} {[%emt 00:01:28]} 39. Kh2
{[%clk 00:00:41]} {[%emt 00:00:48]} Nc6 {[%clk 00:30:55]} {[%emt 00:00:19]} 40.
b4 {[%clk 00:00:37]} {[%emt 00:00:33]} f5 {[%clk 00:28:45]} {[%emt 00:02:39]}
41. Qh4 {[%clk 00:00:44]} {[%emt 00:00:23]} Qf6 {[%clk 00:28:59]} {[%emt
00:00:16]} 42. Qc4 {[%clk 00:00:37]} {[%emt 00:00:36]} f4 {[%clk 00:29:16]}
{[%emt 00:00:14]} 43. exf4 {[%clk 00:00:36]} {[%emt 00:00:31]} Qxf4+ {[%clk
00:29:38]} {[%emt 00:00:09]} 0-1

[Event "ONJK 2024 ABC"]
[Site "Velp, Netherlands"]
[Date "2024.08.02"]
[Round "1.5"]
[White "Rogozyanskiy, Alexander"]
[Black "Ganeshram, Nirupa"]
[Result "1-0"]
[TimeControl "90 minutes + 30 seconds"]
[WhiteElo "1803"]
[BlackElo "1695"]

1. e4 {[%clk 01:30:57]} {[%emt 00:00:02]} c5 {[%clk 01:30:50]} {[%emt
00:00:11]} 2. Nf3 {[%clk 01:31:22]} {[%emt 00:00:05]} d6 {[%clk 01:31:10]}
{[%emt 00:00:10]} 3. d4 {[%clk 01:31:47]} {[%emt 00:00:04]} cxd4 {[%clk
01:31:28]} {[%emt 00:00:13]} 4. Nxd4 {[%clk 01:32:14]} {[%emt 00:00:03]} Nf6
{[%clk 01:31:39]} {[%emt 00:00:19]} 5. Nc3 {[%clk 01:32:41]} {[%emt 00:00:03]}
g6 {[%clk 01:31:39]} {[%emt 00:00:30]} 6. Be3 {[%clk 01:33:02]} {[%emt
00:00:08]} Bg7 {[%clk 01:31:54]} {[%emt 00:00:15]} 7. f3 {[%clk 01:33:28]}
{[%emt 00:00:05]} O-O {[%clk 01:32:00]} {[%emt 00:00:24]} 8. Qd2 {[%clk
01:33:56]} {[%emt 00:00:02]} Nc6 {[%clk 01:31:59]} {[%emt 00:00:31]} 9. g4
{[%clk 01:34:21]} {[%emt 00:00:05]} Be6 {[%clk 01:30:26]} {[%emt 00:02:03]} 10.
Nxe6 {[%clk 01:22:50]} {[%emt 00:12:01]} fxe6 {[%clk 01:30:45]} {[%emt
00:00:11]} 11. O-O-O {[%clk 01:23:05]} {[%emt 00:00:14]} Qc8 {[%clk 01:21:50]}
{[%emt 00:09:25]} 12. h4 {[%clk 01:19:48]} {[%emt 00:03:47]} Ne5 {[%clk
01:15:54]} {[%emt 00:06:26]} 13. Be2 {[%clk 01:16:31]} {[%emt 00:03:47]} Nfd7
{[%clk 01:09:53]} {[%emt 00:06:31]} 14. h5 {[%clk 01:11:18]} {[%emt 00:05:43]}
Nxf3 {[%clk 00:54:53]} {[%emt 00:15:31]} 15. Nd5 {[%clk 01:11:35]} {[%emt
00:00:13]} exd5 {[%clk 00:47:30]} {[%emt 00:07:52]} 16. Qxd5+ {[%clk 01:11:53]}
{[%emt 00:00:13]} Rf7 {[%clk 00:25:55]} {[%emt 00:22:05]} 17. Bxf3 {[%clk
01:10:22]} {[%emt 00:02:01]} Ne5 {[%clk 00:22:46]} {[%emt 00:03:39]} 18. Be2
{[%clk 01:08:04]} {[%emt 00:02:48]} Qc6 {[%clk 00:16:54]} {[%emt 00:06:21]} 19.
hxg6 {[%clk 00:54:07]} {[%emt 00:14:28]} hxg6 {[%clk 00:16:11]} {[%emt
00:01:13]} 20. Qb3 {[%clk 00:39:14]} {[%emt 00:15:23]} Qxe4 {[%clk 00:12:08]}
{[%emt 00:04:32]} 21. Rde1 {[%clk 00:27:07]} {[%emt 00:12:38]} a6 {[%clk
00:09:47]} {[%emt 00:02:51]} 22. Bd2 {[%clk 00:26:06]} {[%emt 00:01:30]} Qc6
{[%clk 00:07:55]} {[%emt 00:02:22]} 23. Bc3 {[%clk 00:25:53]} {[%emt 00:00:44]}
Rc8 {[%clk 00:06:58]} {[%emt 00:01:27]} 24. Rhf1 {[%clk 00:23:27]} {[%emt
00:02:55]} Nc4 {[%clk 00:01:33]} {[%emt 00:05:56]} 25. Rxf7 {[%clk 00:20:52]}
{[%emt 00:03:05]} Kxf7 {[%clk 00:01:56]} {[%emt 00:00:07]} 26. Bxc4+ {[%clk
00:16:50]} {[%emt 00:04:32]} Qxc4 {[%clk 00:02:12]} {[%emt 00:00:14]} 27. Bxg7
{[%clk 00:13:07]} {[%emt 00:04:13]} Qxb3 {[%clk 00:01:34]} {[%emt 00:01:08]} 28.
axb3 {[%clk 00:13:35]} {[%emt 00:00:02]} Kxg7 {[%clk 00:01:55]} {[%emt
00:00:09]} 29. Rxe7+ {[%clk 00:14:01]} {[%emt 00:00:05]} Kf6 {[%clk 00:01:39]}
{[%emt 00:00:45]} 30. Rxb7 {[%clk 00:14:30]} {[%emt 00:00:02]} Rc6 {[%clk
00:01:51]} {[%emt 00:00:17]} 31. Kd2 {[%clk 00:14:43]} {[%emt 00:00:17]} Ke5
{[%clk 00:01:58]} {[%emt 00:00:23]} 32. Kd3 {[%clk 00:14:49]} {[%emt 00:00:24]}
d5 {[%clk 00:01:24]} {[%emt 00:01:04]} 33. Rb4 {[%clk 00:13:50]} {[%emt
00:01:29]} Ke6 {[%clk 00:01:06]} {[%emt 00:00:49]} 34. Rf4 {[%clk 00:13:53]}
{[%emt 00:00:26]} Ke5 {[%clk 00:01:10]} {[%emt 00:00:25]} 35. Rf2 {[%clk
00:14:17]} {[%emt 00:00:07]} Ke6 {[%clk 00:00:45]} {[%emt 00:00:55]} 36. Kd4
{[%clk 00:14:24]} {[%emt 00:00:23]} a5 {[%clk 00:00:35]} {[%emt 00:00:40]} 37.
g5 {[%clk 00:14:12]} {[%emt 00:00:41]} Kd7 {[%clk 00:00:31]} {[%emt 00:00:34]}
38. Kxd5 {[%clk 00:14:28]} {[%emt 00:00:15]} Rd6+ {[%clk 00:00:50]} {[%emt
00:00:11]} 39. Kc5 {[%clk 00:14:45]} {[%emt 00:00:13]} Re6 {[%clk 00:01:05]}
{[%emt 00:00:16]} 40. Rd2+ {[%clk 00:09:55]} {[%emt 00:05:19]} Ke7 {[%clk
00:01:13]} {[%emt 00:00:22]} 41. c4 {[%clk 00:05:46]} {[%emt 00:04:39]} Re3
{[%clk 00:00:43]} {[%emt 00:01:00]} 42. b4 {[%clk 00:05:53]} {[%emt 00:00:24]}
axb4 {[%clk 00:00:59]} {[%emt 00:00:13]} 43. Kxb4 {[%clk 00:06:12]} {[%emt
00:00:11]} Re5 {[%clk 00:01:10]} {[%emt 00:00:19]} 44. Rd5 {[%clk 00:06:33]}
{[%emt 00:00:09]} Re2 {[%clk 00:01:28]} {[%emt 00:00:12]} 45. b3 {[%clk
00:06:56]} {[%emt 00:00:06]} Ke6 {[%clk 00:01:48]} {[%emt 00:00:10]} 46. Kb5
{[%clk 00:07:08]} {[%emt 00:00:19]} Re3 {[%clk 00:02:06]} {[%emt 00:00:12]} 47.
b4 {[%clk 00:07:19]} {[%emt 00:00:19]} Re1 {[%clk 00:02:03]} {[%emt 00:00:33]}
48. Rc5 {[%clk 00:07:13]} {[%emt 00:00:36]} Re2 {[%clk 00:02:12]} {[%emt
00:00:21]} 49. Kb6 {[%clk 00:07:35]} {[%emt 00:00:08]} Rc2 {[%clk 00:01:54]}
{[%emt 00:00:48]} 50. b5 {[%clk 00:07:56]} {[%emt 00:00:09]} Rc1 {[%clk
00:02:18]} {[%emt 00:00:06]} 51. Kb7 {[%clk 00:08:10]} {[%emt 00:00:17]} Rd1
{[%clk 00:02:18]} {[%emt 00:00:30]} 52. b6 {[%clk 00:08:31]} {[%emt 00:00:08]}
Rd7+ {[%clk 00:02:27]} {[%emt 00:00:21]} 53. Rc7 {[%clk 00:08:56]} {[%emt
00:00:06]} Rd4 {[%clk 00:02:36]} {[%emt 00:00:21]} 54. Kc8 {[%clk 00:08:57]}
{[%emt 00:00:28]} 1-0

[Event "ONJK 2024 ABC"]
[Site "Velp, Netherlands"]
[Date "2024.08.02"]
[Round "1.6"]
[White "Madularea, David"]
[Black "Luijkx, Dagmar"]
[Result "1-0"]
[TimeControl "90 minutes + 30 seconds"]
[WhiteElo "2190"]
[BlackElo "1653"]

1. e4 {[%clk 01:30:14]} {[%emt 00:00:45]} e6 {[%clk 01:30:46]} {[%emt
00:00:14]} 2. d4 {[%clk 01:30:39]} {[%emt 00:00:05]} d5 {[%clk 01:31:14]}
{[%emt 00:00:04]} 3. e5 {[%clk 01:29:26]} {[%emt 00:01:43]} c5 {[%clk
01:31:25]} {[%emt 00:00:19]} 4. c3 {[%clk 01:28:59]} {[%emt 00:00:57]} Nc6
{[%clk 01:31:48]} {[%emt 00:00:07]} 5. Nf3 {[%clk 01:29:23]} {[%emt 00:00:04]}
Bd7 {[%clk 01:32:15]} {[%emt 00:00:04]} 6. Be2 {[%clk 01:29:45]} {[%emt
00:00:08]} Qb6 {[%clk 01:31:59]} {[%emt 00:00:46]} 7. O-O {[%clk 01:12:07]}
{[%emt 00:18:08]} cxd4 {[%clk 01:31:33]} {[%emt 00:00:56]} 8. cxd4 {[%clk
01:12:11]} {[%emt 00:00:26]} Nge7 {[%clk 01:31:30]} {[%emt 00:00:33]} 9. Na3
{[%clk 01:11:56]} {[%emt 00:00:45]} Ng6 {[%clk 01:19:58]} {[%emt 00:12:02]} 10.
Nc2 {[%clk 01:09:06]} {[%emt 00:03:19]} Be7 {[%clk 01:19:34]} {[%emt 00:00:54]}
11. Re1 {[%clk 01:05:44]} {[%emt 00:03:52]} O-O {[%clk 01:19:10]} {[%emt
00:00:55]} 12. Bd3 {[%clk 00:54:43]} {[%emt 00:11:30]} Rac8 {[%clk 01:13:59]}
{[%emt 00:05:42]} 13. h4 {[%clk 00:47:00]} {[%emt 00:08:13]} Nb4 {[%clk
00:57:00]} {[%emt 00:17:30]} 14. Nxb4 {[%clk 00:43:40]} {[%emt 00:03:50]} Bxb4
{[%clk 00:56:50]} {[%emt 00:00:39]} 15. Re3 {[%clk 00:42:23]} {[%emt 00:01:47]}
Rc7 {[%clk 00:50:03]} {[%emt 00:07:18]} 16. h5 {[%clk 00:39:25]} {[%emt
00:03:28]} Ne7 {[%clk 00:39:52]} {[%emt 00:10:42]} 17. a3 {[%clk 00:37:58]}
{[%emt 00:01:57]} Qa5 {[%clk 00:37:24]} {[%emt 00:02:57]} 18. Rb1 {[%clk
00:37:26]} {[%emt 00:01:02]} Nf5 {[%clk 00:29:40]} {[%emt 00:08:14]} 19. Bxf5
{[%clk 00:37:33]} {[%emt 00:00:23]} exf5 {[%clk 00:29:54]} {[%emt 00:00:17]} 20.
axb4 {[%clk 00:37:53]} {[%emt 00:00:10]} Qxb4 {[%clk 00:29:56]} {[%emt
00:00:27]} 21. Bd2 {[%clk 00:37:47]} {[%emt 00:00:35]} Qb6 {[%clk 00:29:05]}
{[%emt 00:01:22]} 22. Ra3 {[%clk 00:33:41]} {[%emt 00:04:35]} Qe6 {[%clk
00:27:43]} {[%emt 00:01:52]} 23. h6 {[%clk 00:32:24]} {[%emt 00:01:47]} gxh6
{[%clk 00:26:50]} {[%emt 00:01:24]} 24. Nh4 {[%clk 00:30:27]} {[%emt 00:02:25]}
Kh8 {[%clk 00:26:20]} {[%emt 00:01:01]} 25. Qh5 {[%clk 00:30:10]} {[%emt
00:00:47]} Rc6 {[%clk 00:26:23]} {[%emt 00:00:27]} 26. Rf3 {[%clk 00:28:23]}
{[%emt 00:02:16]} 1-0